bitfinex-derivatives/quotes_SOLF0:USTF0_20251219
["timestamp","ask_amount","ask_price","bid_price","bid_amount"]
[1766152836958,0.05690494,125.87,125.85,0.05325802]
[1766152837757,18.26690494,125.87,125.83,8.802e-05]
[1766152838958,18.26690494,125.87,125.84,0.0603412]
[1766152840549,18.26690494,125.87,125.84,0.0003412]
[1766152840862,18.21,125.86,125.79,17.31]
[1766152841057,21.99821318,125.85,125.78,17.31]
[1766152841458,18.21,125.84,125.78,17.31]
[1766152841850,0.05368386,125.82,125.8,0.05799481]
[1766152842052,18.26368386,125.82,125.76,17.31]
[1766152842254,18.26368386,125.82,125.74,17.31]
[1766152842452,18.21,125.8,125.74,17.31]
[1766152842963,0.05559926,125.78,125.76,0.05625176]
[1766152843455,0.05559926,125.78,125.7,17.31]
[1766152843456,18.26559926,125.78,125.7,17.31]
[1766152843762,18.21,125.78,125.7,17.31]
[1766152843963,18.21,125.8,125.72,17.31]
[1766152844155,3.78821318,125.77,125.69,17.31]
[1766152844355,0.05690301,125.74,125.72,0.05471537]
[1766152844557,0.05690301,125.74,125.69,17.31]
[1766152845657,18.21,125.79,125.7,21.14908438]
[1766152845964,18.21,125.79,125.7,21.09821318]
[1766152846665,0.054595,125.76,125.73,0.05223337]
[1766152847053,18.264595,125.76,125.73,0.00223337]
[1766152847259,22.05280818,125.76,125.68,17.31]
[1766152847458,21.99821318,125.76,125.68,17.31]
[1766152847967,18.21,125.76,125.69,17.31]
[1766152848162,0.0598537,125.74,125.71,0.06040618]
[1766152848762,18.2698537,125.74,125.71,0.06040618]
[1766152848963,18.2698537,125.74,125.67,17.31]
[1766152849871,18.2698537,125.74,125.69,0.02944971]
[1766152850966,0.0598537,125.74,125.69,21.12766289]
[1766152851570,0.0598537,125.74,125.69,17.33944971]
[1766152851769,0.0598537,125.74,125.69,64.31944971]
[1766152851968,0.0598537,125.74,125.7,21.09821318]
[1766152853374,0.0598537,125.74,125.7,68.07821318]
[1766152853576,0.0598537,125.74,125.71,17.31]
[1766152853771,18.21,125.78,125.71,17.31]
[1766152854165,18.21,125.78,125.71,64.29]
[1766152854375,18.21,125.78,125.71,71.4529]
[1766152854677,0.06004204,125.76,125.73,0.06004371]
[1766152855466,18.21,125.81,125.74,21.09821318]
[1766152856067,18.21,125.81,125.74,28.25951318]
[1766152856266,18.21,125.81,125.74,75.23951318]
[1766152856467,0.05115239,125.79,125.76,0.05208436]
[1766152858272,18.26115239,125.79,125.76,0.00208436]
[1766152859070,25.3694,125.78,125.76,0.00208436]
[1766152859276,18.21,125.77,125.69,21.09821318]
[1766152859476,18.21,125.77,125.69,68.07821318]
[1766152860271,18.21,125.77,125.72,0.05932374]
[1766152861280,0.05059944,125.76,125.72,0.05932374]
[1766152863172,0.05059944,125.76,125.72,17.36932374]
[1766152863768,7.1583,125.8,125.73,21.09821318]
[1766152864378,17.55,125.78,125.71,67.84821318]
[1766152864679,17.55,125.8,125.73,20.86821318]
[1766152864884,0.05152285,125.78,125.75,0.05546709]
[1766152865182,17.55,125.8,125.75,3.84368027]
[1766152865372,17.55,125.8,125.75,0.05546709]
[1766152866087,0.05556553,125.79,125.75,0.05546709]
[1766152868187,0.05556553,125.79,125.75,17.13546709]
[1766152868387,17.55,125.82,125.76,17.08]
[1766152868580,17.55,125.82,125.76,24.2402]
[1766152868780,1.5510897,125.84,125.77,17.08]
[1766152868988,1.5510897,125.84,125.78,17.08]
[1766152869177,17.55,125.88,125.8,17.08]
[1766152869386,0.05647164,125.85,125.83,0.05508102]
[1766152870583,17.55,125.88,125.83,0.05508102]
[1766152871693,0.056352,125.87,125.83,0.05508102]
[1766152872590,0.056352,125.87,125.83,17.13508102]
[1766152876890,0.056352,125.87,125.83,64.09508102]
[1766152882097,0.056352,125.87,125.83,71.25128102]
[1766152886195,24.5811,125.93,125.85,18.83]
[1766152886398,17.43,125.97,125.86,24.76127111]
[1766152886596,17.43,125.97,125.88,18.83]
[1766152886896,17.43,125.97,125.89,18.83]
[1766152887398,0.05903807,125.94,125.92,0.05088838]
[1766152887785,17.43,125.97,125.92,0.05088838]
[1766152887993,17.43,126.01,125.92,18.88088838]
[1766152888192,17.43,126.01,125.92,18.83]
[1766152888793,0.0525811,125.98,125.95,0.06068868]
[1766152890100,0.0025811,125.98,125.95,0.06068868]
[1766152892000,17.43,126.02,125.95,18.89068868]
[1766152892604,17.43,126.02,125.95,26.04008868]
[1766152892803,17.43,126.02,125.96,46.94]
[1766152893209,0.05827801,126.0,125.96,46.94]
[1766152893598,0.05827801,126.0,125.95,46.94]
[1766152893999,18.79827801,126.0,125.93,18.83]
[1766152894207,18.79827801,126.0,125.95,0.05749811]
[1766152894808,0.05827801,126.0,125.95,18.05749811]
[1766152897305,18.79827801,126.0,125.95,0.05749811]
[1766152897510,18.74,125.99,125.91,39.82]
[1766152898608,0.05664675,125.96,125.94,0.05921538]
[1766152902104,111.1691,126.01,125.94,0.05921538]
[1766152902105,18.74,126.01,125.94,0.05921538]
[1766152902310,18.74,126.01,125.94,18.05921538]
[1766152902802,25.8863,126.01,125.94,18.05921538]
[1766152903207,0.05419059,125.99,125.94,18.05921538]
[1766152905109,18.74,126.05,125.95,18.0]
[1766152905307,18.74,126.05,125.97,18.0]
[1766152906116,0.05682225,126.02,126.0,0.05298432]
[1766152906313,0.05682225,126.02,125.97,18.0]
[1766152906616,0.05682225,126.02,125.96,64.92]
[1766152906813,25.8848,126.04,125.97,18.0]
[1766152907015,18.74,126.04,125.97,18.0]
[1766152907417,0.05115337,126.02,125.99,0.05996457]
[1766152907809,0.00115337,126.02,125.99,18.05996457]
[1766152909218,25.8837,126.06,125.99,18.05996457]
[1766152910313,0.06025875,126.04,125.99,18.05996457]
[1766152910511,0.06025875,126.04,125.94,111.2206]
[1766152910512,18.74,126.03,125.94,18.0]
[1766152910714,18.74,126.03,125.89,329.24342105]
[1766152910715,18.74,126.03,125.95,64.9]
[1766152911415,25.8851,126.03,125.95,72.0495]
[1766152911619,25.8851,126.03,125.98,0.05155327]
[1766152911620,0.05989322,126.0,125.98,0.05155327]
[1766152911925,7.1443,126.05,125.98,0.05155327]
[1766152912218,7.1443,126.05,125.97,25.1483]
[1766152912423,25.8843,126.05,125.97,25.1483]
[1766152912815,0.05117619,126.02,126.0,0.05270701]
[1766152913426,18.74,126.05,126.0,0.05270701]
[1766152913923,25.8832,126.07,126.0,18.05270701]
[1766152914615,0.05517899,126.05,126.0,18.05270701]
[1766152917718,0.05517899,126.05,126.01,7.1459]
[1766152918816,0.05517899,126.05,126.01,25.1459]
[1766152919726,0.05517899,126.05,126.02,7.1454]
[1766152919914,65.66,126.1,126.02,25.1454]
[1766152920118,65.66,126.1,126.03,46.9]
[1766152920315,18.74,126.1,126.03,46.9]
[1766152921013,0.053128,126.08,126.05,0.05332591]
[1766152921811,18.74,126.1,126.05,0.05332591]
[1766152922011,18.74,126.12,126.05,18.05332591]
[1766152922212,1.53994169,126.13,126.05,18.0]
[1766152922425,18.74,126.15,126.08,25.142]
[1766152922619,18.74,126.15,126.08,64.88]
[1766152922920,0.05745691,126.13,126.1,0.05766427]
[1766152923125,0.05745691,126.13,126.04,18.0]
[1766152923126,18.79745691,126.13,126.04,18.0]
[1766152923326,18.74,126.13,126.04,64.88]
[1766152923719,18.74,126.11,126.04,46.88]
[1766152924123,19.02101221,126.09,126.01,18.0]
[1766152924331,18.97,126.09,126.01,18.0]
[1766152924515,18.97,126.09,126.01,64.88]
[1766152924827,18.97,126.09,125.99,17.81]
[1766152924828,18.97,126.07,125.99,17.81]
[1766152925225,0.00338165,126.04,126.02,0.05468908]
[1766152925429,18.97,126.1,126.01,64.69]
[1766152925726,18.97,126.12,126.04,17.81]
[1766152926315,0.0583606,126.09,126.07,0.00175764]
[1766152926514,18.97,126.09,126.02,46.88]
[1766152927027,18.97,126.09,126.01,17.81]
[1766152927228,18.97,126.09,126.01,64.69]
[1766152927434,0.05292194,126.06,126.04,0.0610699]
[1766152931727,18.97,126.09,126.04,0.0610699]
[1766152932530,18.97,126.11,126.04,17.8710699]
[1766152932726,0.05595343,126.09,126.06,0.05987026]
[1766152934239,19.02595343,126.09,126.01,24.9557]
[1766152934440,18.97,126.09,126.02,46.88]
[1766152934630,18.97,126.09,126.02,64.69]
[1766152935135,18.97,126.09,126.01,7.1457]
[1766152935136,19.02302256,126.07,126.04,0.00061366]
[1766152936540,26.16612256,126.07,126.04,0.00061366]
[1766152939446,19.02302256,126.07,126.04,0.00061366]
[1766152944635,0.05302256,126.07,126.04,0.00061366]
[1766152945747,17.4,126.1,126.04,0.00061366]
[1766152945937,17.4,126.13,126.04,18.55061366]
[1766152946140,17.4,126.13,126.04,18.55]
[1766152946342,24.5394,126.13,126.06,7.1432]
[1766152946544,24.5394,126.13,126.06,25.6932]
[1766152946848,0.05787753,126.11,126.08,0.05543065]
[1766152949052,111.0358,126.16,126.09,18.55]
[1766152949053,17.4,126.16,126.09,18.55]
[1766152950154,0.05147598,126.14,126.11,0.05856857]
[1766152951549,17.45147598,126.14,126.11,0.05856857]
[1766152952338,17.45147598,126.14,126.07,18.55]
[1766152952537,17.4,126.12,126.04,18.55]
[1766152953547,0.05278479,126.09,126.07,0.05328427]
[1766152958362,17.59278479,126.09,126.02,16.48]
[1766152958562,17.59278479,126.09,126.0,16.48]
[1766152958860,17.54,126.07,126.0,16.48]
[1766152959449,0.06105937,126.05,126.02,0.06001406]
[1766152959648,0.06105937,126.05,126.02,0.0592769]
[1766152961854,17.60105937,126.05,125.98,16.48]
[1766152962258,17.54,126.04,125.97,7.148]
[1766152962850,0.05463545,126.02,125.99,0.05628788]
[1766152963457,0.00463545,126.02,125.99,0.05628788]
[1766152967455,0.00463545,126.02,125.99,7.20348788]
[1766152968648,17.54,126.05,125.99,23.68348788]
[1766152968852,17.54,126.07,126.0,16.48]
[1766152969049,17.54,126.07,126.0,23.6265]
[1766152969653,0.05227398,126.05,126.02,0.05428443]
[1766152970056,0.00227398,126.05,126.02,16.53428443]
[1766152970361,17.54,126.09,126.02,0.05428443]
[1766152970753,17.54,126.07,126.02,0.05428443]
[1766152971261,0.0576195,126.06,126.02,0.05428443]
[1766152978869,17.5976195,126.06,126.02,0.05428443]
[1766152979869,17.54,126.05,126.02,0.05428443]
[1766152980972,0.0576195,126.06,126.02,0.05428443]
[1766152982973,0.0576195,126.06,126.02,7.19978443]
[1766152987976,0.0576195,126.06,126.02,23.27978443]
[1766152989680,0.0576195,126.06,126.03,62.96]
[1766152990276,16.05,126.12,126.05,16.08]
[1766152990975,16.05,126.1,126.03,46.88]
[1766152991277,0.05388512,126.08,126.05,0.06049613]
[1766152995385,16.10388512,126.08,126.05,0.06049613]
[1766152996974,16.10388512,126.08,126.0,14.54819698]
[1766152996975,16.05,126.06,126.0,16.08]
[1766152997883,0.05888734,126.04,126.02,0.05487507]
[1766153004284,16.05,126.06,126.02,0.05487507]
[1766153005087,23.1934,126.06,126.02,0.05487507]
[1766153005279,0.05230908,126.05,126.02,0.05487507]
[1766153007386,23.1934,126.06,126.02,0.05487507]
[1766153007584,23.6826,126.08,126.02,6.77207236]
[1766153007790,23.6826,126.08,126.02,6.71719729]
[1766153008690,0.0565281,126.06,126.04,0.05192582]
[1766153008879,23.6826,126.08,126.04,0.05192582]
[1766153009890,0.05253355,126.07,126.04,0.05192582]
[1766153010089,23.6826,126.08,126.04,0.05192582]
[1766153010890,16.54,126.08,126.04,0.05192582]
[1766153011200,7.1415,126.1,126.04,23.41912311]
[1766153011491,7.1415,126.1,126.05,6.71391986]
[1766153011989,7.1404,126.12,126.05,23.36391986]
[1766153012286,7.1404,126.12,126.07,0.05623491]
[1766153012488,157.9348,126.14,126.07,0.05623491]
[1766153013088,16.54,126.13,126.07,0.05623491]
[1766153013494,16.54,126.12,126.07,0.05623491]
[1766153013890,16.54,126.12,126.07,6.77015477]
[1766153015598,7.1398,126.13,126.07,22.23015477]
[1766153017397,46.88,126.14,126.09,6.71391986]
[1766153017695,62.88,126.14,126.1,0.05069702]
[1766153019196,111.0304,126.17,126.1,0.05069702]
[1766153019197,111.0079,126.19,126.11,6.71391986]
[1766153019400,46.88,126.18,126.14,0.00013416]
[1766153019598,157.8984,126.18,126.11,6.71391986]
[1766153019803,7.1383,126.15,126.11,1.986e-05]
[1766153020000,7.1383,126.15,126.09,22.17391986]
[1766153020499,111.0262,126.17,126.09,6.71391986]
[1766153020702,0.05195807,126.13,126.11,0.00085558]
[1766153020902,111.0262,126.17,126.11,0.00085558]
[1766153021297,1.86,126.16,126.11,0.00085558]
[1766153021494,1.86,126.13,126.11,0.00085558]
[1766153021894,1.91358772,126.13,126.11,0.00085558]
[1766153022506,7.1386,126.15,126.11,0.00085558]
[1766153023294,111.0262,126.17,126.11,15.46085558]
[1766153023295,1.92,126.17,126.11,15.46085558]
[1766153023703,1.92,126.15,126.11,0.00085558]
[1766153025205,9.1173,126.17,126.11,0.00085558]
[1766153025601,1.98,126.17,126.11,6.71477544]
[1766153025798,1.98,126.17,126.11,22.17477544]
[1766153026001,2.01,126.19,126.12,15.46]
[1766153026209,2.01,126.19,126.14,0.05492909]
[1766153027404,9.1461,126.19,126.14,0.05492909]
[1766153029415,7.1367,126.18,126.14,0.05492909]
[1766153029602,9.2267,126.18,126.14,0.05492909]
[1766153034426,11.01207295,126.2,126.14,15.51492909]
[1766153035126,2.25,126.19,126.14,15.51492909]
[1766153036214,0.05432827,126.18,126.14,0.00492909]
[1766153036416,2.22,126.17,126.14,0.00492909]
[1766153037311,2.25,126.15,126.14,0.00492909]
[1766153038019,2.25,126.15,126.08,62.3]
[1766153038217,2.25,126.15,126.08,69.4421]
[1766153038613,7.1377,126.16,126.1,15.46]
[1766153039218,0.05211357,126.14,126.12,0.05550475]
[1766153039418,9.407,126.18,126.12,0.05550475]
[1766153039717,2.27,126.18,126.12,0.05550475]
[1766153040725,7.1372,126.17,126.12,0.05550475]
[1766153041027,9.4772,126.17,126.12,0.05550475]
[1766153041416,3.99617295,126.2,126.13,22.17391986]
[1766153041618,3.99617295,126.2,126.15,0.05853883]
[1766153042218,8.79167295,126.2,126.15,15.51853883]
[1766153042419,2.37,126.23,126.17,6.71391986]
[1766153042629,2.37,126.23,126.19,0.05108096]
[1766153042925,2.37,126.27,126.21,6.71391986]
[1766153043228,110.9162,126.3,126.23,6.76748975]
[1766153043418,7.1316,126.27,126.21,15.46]
[1766153043624,110.9303,126.28,126.19,6.71391986]
[1766153043821,110.9451,126.26,126.18,22.17391986]
[1766153044526,0.05622285,126.23,126.21,0.05139866]
[1766153044719,0.05622285,126.23,126.18,22.17391986]
[1766153045729,0.08622285,126.23,126.19,0.055462]
[1766153045917,0.08622285,126.23,126.16,6.71391986]
[1766153046829,7.22022285,126.23,126.18,0.05022043]
[1766153048430,0.02,126.22,126.18,0.05022043]
[1766153049823,0.02,126.22,126.14,6.71391986]
[1766153050030,111.02982285,126.23,126.14,6.71391986]
[1766153050031,7.135,126.21,126.14,6.71391986]
[1766153050222,7.135,126.21,126.12,63.73]
[1766153050223,7.135,126.21,126.13,16.89]
[1766153050726,110.9893,126.21,126.13,16.89]
[1766153050929,0.05925167,126.18,126.16,0.00116211]
[1766153051229,0.05925167,126.18,126.11,16.89]
[1766153051424,7.19595167,126.18,126.11,21.18324398]
[1766153052132,7.19595167,126.18,126.13,0.05648855]
[1766153052333,7.1372,126.17,126.13,0.05648855]
[1766153054126,0.05925167,126.18,126.13,0.05648855]
[1766153054728,0.05925167,126.18,126.13,4.34973253]
[1766153054936,0.05925167,126.18,126.13,16.94648855]
[1766153055232,0.05925167,126.18,126.13,21.23973253]
[1766153055435,0.05925167,126.18,126.14,16.89]
[1766153056637,0.05925167,126.18,126.15,4.29324398]
[1766153058631,7.1356,126.2,126.15,4.29324398]
[1766153059536,0.02,126.21,126.15,4.29324398]
[1766153059742,0.05815956,126.19,126.17,4.34480893]
[1766153060041,0.06,126.21,126.15,4.29324398]
[1766153060842,7.1953,126.21,126.15,20.68324398]
[1766153061037,0.05051923,126.19,126.17,0.05560579]
[1766153061246,7.1953,126.21,126.17,4.34884977]
[1766153061434,7.1353,126.21,126.17,4.34884977]
[1766153062345,0.05744424,126.2,126.17,20.73884977]
[1766153062544,0.08,126.23,126.17,20.73884977]
[1766153063642,0.06100218,126.21,126.17,20.73884977]
[1766153063842,7.1344,126.22,126.17,20.73884977]
[1766153064944,0.04339128,126.21,126.19,4.29324398]
[1766153065144,0.08,126.23,126.19,4.35278071]
[1766153065743,7.1345,126.22,126.17,20.68324398]
[1766153066640,7.1345,126.22,126.18,0.0555291]
[1766153066845,0.05744213,126.21,126.18,0.0555291]
[1766153067532,7.19254213,126.21,126.18,0.0555291]
[1766153070949,0.08,126.23,126.18,0.0555291]
[1766153072046,7.135,126.21,126.19,4.398e-05]
[1766153072248,0.08,126.23,126.19,4.398e-05]
[1766153073649,7.135,126.21,126.19,4.398e-05]
[1766153073949,0.08,126.23,126.19,4.398e-05]
[1766153074543,7.135,126.21,126.19,4.398e-05]
[1766153074738,0.08,126.23,126.19,4.398e-05]
[1766153075552,7.135,126.21,126.19,4.398e-05]
[1766153075753,0.08,126.23,126.19,4.398e-05]
[1766153076641,7.135,126.21,126.19,4.398e-05]
[1766153076845,0.08,126.23,126.19,4.398e-05]
[1766153079157,7.2138,126.23,126.19,4.398e-05]
[1766153080055,46.84,126.25,126.21,4.398e-05]
[1766153080244,46.84,126.25,126.22,0.00278632]
[1766153081251,46.89200286,126.25,126.22,0.00278632]
[1766153081658,110.9323,126.28,126.23,4.398e-05]
[1766153082058,0.16,126.27,126.23,4.398e-05]
[1766153082255,7.1324,126.26,126.23,4.398e-05]
[1766153082459,0.16,126.27,126.23,4.28578687]
[1766153083258,7.1313,126.28,126.23,4.28578687]
[1766153083458,112.20091449,126.31,126.25,4.28578687]
[1766153083755,112.20091449,126.31,126.27,0.00215284]
[1766153084756,7.1305,126.29,126.27,0.00215284]
[1766153085461,7.1305,126.29,126.25,4.28578687]
[1766153086564,7.1305,126.29,126.26,0.05282465]
[1766153087359,7.131,126.28,126.22,16.09]
[1766153087661,7.131,126.28,126.24,4.28578687]
[1766153087866,7.1302,126.3,126.26,4.28578687]
[1766153088060,1.29521449,126.31,126.24,16.09]
[1766153088255,1.29521449,126.31,126.26,0.05230391]
[1766153088457,7.1312,126.28,126.24,4.28578687]
[1766153089361,7.1312,126.28,126.25,0.06068958]
[1766153090066,7.63046084,126.29,126.25,0.06068958]
[1766153090763,7.62,126.31,126.25,0.06068958]
[1766153090964,118.5226,126.31,126.25,0.00068958]
[1766153091157,3.31,126.3,126.25,0.00068958]
[1766153091560,110.9281,126.28,126.16,16.09]
[1766153091764,110.9346,126.27,126.2,4.28578687]
[1766153091968,134.7646,126.27,126.19,4.28578687]
[1766153092575,0.06089523,126.24,126.19,4.28578687]
[1766153093664,0.06089523,126.24,126.2,0.0550637]
[1766153094476,7.1316,126.27,126.21,4.28578687]
[1766153094764,46.82,126.29,126.23,4.28578687]
[1766153095466,46.82,126.29,126.25,0.05627769]
[1766153095666,0.05145796,126.27,126.25,0.05627769]
[1766153096458,0.05145796,126.27,126.23,4.28578687]
[1766153097564,0.05145796,126.27,126.24,0.06053185]
[1766153100974,7.18305796,126.27,126.21,20.37578687]
[1766153102070,7.18305796,126.27,126.23,0.05519013]
[1766153102775,7.1322,126.26,126.21,4.28578687]
[1766153103585,7.1322,126.26,126.22,0.05692626]
[1766153103875,0.05145796,126.27,126.22,0.05692626]
[1766153104379,0.05145796,126.27,126.23,4.28578687]
[1766153104877,53.9507,126.29,126.23,4.28578687]
[1766153104878,53.9507,126.29,126.23,22.00578687]
[1766153105473,46.82,126.29,126.25,4.28578687]
[1766153105675,1.31706802,126.32,126.27,4.28578687]
[1766153105878,0.05885399,126.31,126.28,0.0524753]
[1766153107370,7.1281,126.33,126.29,4.28578687]
[1766153108379,0.05751285,126.32,126.29,4.28578687]
[1766153108580,7.1281,126.33,126.29,4.28578687]
[1766153109572,0.05336985,126.32,126.29,4.28578687]
[1766153111472,0.05336985,126.32,126.28,0.0524753]
[1766153112277,0.05336985,126.32,126.28,17.7724753]
[1766153112478,46.82,126.34,126.28,24.46354768]
[1766153113482,0.05152491,126.32,126.28,24.46354768]
[1766153113682,46.82,126.34,126.28,24.46354768]
[1766153114774,0.05505668,126.32,126.28,24.46354768]
[1766153115174,0.05505668,126.32,126.28,17.7724753]
[1766153119080,46.82,126.34,126.28,17.7724753]
[1766153120091,46.82,126.34,126.3,17.72]
[1766153120285,7.1262,126.37,126.31,17.77053263]
[1766153120594,182.83396312,126.4,126.32,17.72]
[1766153120894,182.83396312,126.4,126.35,0.05168388]
[1766153121488,7.1259,126.37,126.35,0.05168388]
[1766153121689,182.83396312,126.4,126.35,0.05168388]
[1766153121884,181.4561,126.4,126.35,0.05168388]
[1766153122286,7.1254,126.38,126.35,0.05168388]
[1766153122692,181.4561,126.4,126.35,0.05168388]
[1766153123482,7.126,126.37,126.35,0.00168388]
[1766153124590,7.176,126.37,126.35,0.00168388]
[1766153125089,7.1266,126.36,126.3,16.76]
[1766153125286,110.8477,126.37,126.3,16.76]
[1766153126086,0.05168388,126.35,126.32,0.05199046]
[1766153126593,7.17878388,126.35,126.32,0.05199046]
[1766153127191,0.05168388,126.35,126.32,0.05199046]
[1766153127992,0.05168388,126.35,126.32,16.81199046]
[1766153129597,7.1251,126.39,126.32,16.81199046]
[1766153129791,7.1251,126.39,126.32,16.76]
[1766153130594,7.1251,126.39,126.34,0.0574265]
[1766153130994,157.6251,126.4,126.34,0.0574265]
[1766153131193,110.8294,126.39,126.34,0.0574265]
[1766153131493,110.8294,126.39,126.26,16.76]
[1766153131494,110.8557,126.36,126.26,16.76]
[1766153131688,110.8741,126.34,126.26,16.76]
[1766153132294,0.05429331,126.31,126.29,0.05379274]
[1766153136605,6.69107238,126.37,126.29,16.97379274]
[1766153136805,77.30107238,126.37,126.29,16.92]
[1766153137306,46.78,126.37,126.29,16.92]
[1766153137614,46.78,126.37,126.32,0.05144886]
[1766153138705,7.1272,126.35,126.32,0.05144886]
[1766153139098,7.18178205,126.35,126.29,16.92]
[1766153140101,7.18178205,126.35,126.31,0.05632049]
[1766153144910,0.05458205,126.35,126.27,16.92]
[1766153145217,134.689,126.36,126.27,16.92]
[1766153146020,0.05167163,126.33,126.3,0.05374841]
[1766153146714,7.17977163,126.33,126.3,0.05374841]
[1766153149915,0.05167163,126.33,126.3,0.05374841]
[1766153156124,7.17997163,126.33,126.26,16.92]
[1766153156328,6.69176351,126.34,126.26,16.92]
[1766153156833,7.1288,126.32,126.26,16.92]
[1766153157235,0.05388746,126.3,126.28,0.05021583]
[1766153157529,0.05388746,126.3,126.26,16.92]
[1766153158334,0.05388746,126.3,126.27,0.05574359]
[1766153160032,0.05388746,126.3,126.27,16.97574359]
[1766153160433,117.57026351,126.34,126.27,16.97574359]
[1766153160434,7.1286,126.33,126.27,16.97574359]
[1766153161523,0.05051174,126.31,126.27,16.97574359]
[1766153163137,0.00051174,126.31,126.27,16.97574359]
[1766153163332,6.76176351,126.35,126.28,16.92]
[1766153163835,7.1276,126.34,126.28,16.92]
[1766153164225,0.05374165,126.32,126.3,0.06082148]
[1766153164832,0.05374165,126.32,126.26,17.51]
[1766153165040,0.15,126.33,126.26,17.51]
[1766153165937,0.05736436,126.31,126.28,0.05327703]
[1766153168541,0.23,126.37,126.28,17.56327703]
[1766153168746,0.23,126.37,126.28,17.51]
[1766153169442,13.81746351,126.38,126.31,17.57035701]
[1766153170250,14.10746351,126.38,126.31,17.57035701]
[1766153170444,0.05609602,126.36,126.31,17.57035701]
[1766153171537,0.29,126.35,126.31,0.06035701]
[1766153171752,0.29,126.34,126.26,62.03]
[1766153171952,0.29,126.34,126.27,17.51]
[1766153172446,7.4177,126.34,126.27,17.51]
[1766153172647,6.69176351,126.35,126.26,44.52]
[1766153172648,0.05773884,126.32,126.29,17.56885655]
[1766153172845,7.4168,126.36,126.29,17.56885655]
[1766153173435,11.69859095,126.36,126.29,17.56885655]
[1766153173947,0.0583404,126.34,126.29,17.56885655]
[1766153174548,4.34013135,126.34,126.29,17.56885655]
[1766153176352,157.6305,126.37,126.29,17.56885655]
[1766153176353,51.40179095,126.37,126.29,17.56885655]
[1766153176647,4.28179095,126.35,126.29,17.51]
[1766153176839,4.62179095,126.35,126.29,17.51]
[1766153177242,4.28179095,126.33,126.29,17.51]
[1766153177441,4.28179095,126.33,126.3,0.05059715]
[1766153178146,11.77999095,126.33,126.27,16.95]
[1766153178939,11.77999095,126.33,126.29,0.05872987]
[1766153179237,11.77999095,126.33,126.27,16.95]
[1766153179238,0.05097094,126.31,126.27,16.95]
[1766153179847,0.00097094,126.31,126.27,16.95]
[1766153180841,0.00097094,126.31,126.28,0.05706764]
[1766153181247,4.28276189,126.31,126.28,0.05706764]
[1766153182356,4.28276189,126.31,126.26,61.47]
[1766153183252,4.28276189,126.31,126.27,0.05291987]
[1766153186947,11.41216189,126.31,126.27,0.05291987]
[1766153187148,11.83216189,126.31,126.27,0.05291987]
[1766153188057,4.28179095,126.3,126.22,16.95]
[1766153188354,4.28179095,126.32,126.23,16.95]
[1766153188657,4.28179095,126.32,126.26,16.95]
[1766153189059,7.1282,126.33,126.28,0.056638]
[1766153189262,7.1289,126.32,126.28,0.056638]
[1766153189658,7.1295,126.31,126.28,0.056638]
[1766153189958,4.28179095,126.3,126.24,16.95]
[1766153190367,11.41169095,126.3,126.24,16.95]
[1766153190764,0.06058716,126.28,126.26,0.05558831]
[1766153191866,0.06058716,126.28,126.21,24.0844]
[1766153192252,0.00058716,126.28,126.23,16.95]
[1766153192560,7.4996,126.31,126.23,16.95]
[1766153192974,7.4996,126.31,126.24,16.95]
[1766153193361,0.05323115,126.29,126.26,0.05774529]
[1766153203176,0.05323115,126.29,126.26,18.38774529]
[1766153203474,4.28179095,126.32,126.26,18.38774529]
[1766153204067,7.5485,126.33,126.26,18.38774529]
[1766153204266,0.05583363,126.31,126.26,18.38774529]
[1766153205683,7.18513363,126.31,126.26,18.38774529]
[1766153205976,0.52583363,126.31,126.26,0.05774529]
[1766153206473,7.65513363,126.31,126.26,0.05774529]
[1766153206675,0.05583363,126.31,126.26,18.38774529]
[1766153209579,7.1298,126.3,126.26,18.38774529]
[1766153209777,0.52583363,126.31,126.26,18.38774529]
[1766153210678,7.65513363,126.31,126.26,18.38774529]
[1766153213384,7.1298,126.3,126.26,18.38774529]
[1766153216985,4.76179095,126.3,126.26,0.05774529]